fUSD/lending_fUSD_20250324
["ID","MTS","AMOUNT","RATE_DAILY","PERIOD"]
[356621970,1742845232890,-153.37383349,0.00047671,120]
[356621971,1742845232928,-1269.12,0.00047671,120]
[356621972,1742845232963,-500.0,0.00047671,120]
[356621973,1742845232995,-500.0,0.00047671,120]
[356621974,1742845233028,-500.0,0.00047671,120]
[356621975,1742845233065,-500.0,0.00047671,120]
[356621976,1742845233104,-500.0,0.00047671,120]
[356621977,1742845233139,-500.0,0.00047671,120]
[356621978,1742845233174,-500.0,0.00047671,120]
[356621979,1742845233207,-386.72181445,0.00047671,120]
[356621980,1742845233241,-184.48131823,0.00047671,120]
[356621981,1742845233274,-500.0,0.00047671,120]
[356621982,1742845233308,-341.49378937,0.00047671,120]
[356621983,1742845233347,-500.0,0.00047671,120]
[356621984,1742845233383,-500.0,0.00047671,120]
[356621985,1742845233418,-564.00828023,0.00047671,120]
[356621986,1742845233454,-500.0,0.00047671,120]
[356621987,1742845233487,-500.0,0.00047671,120]
[356621988,1742845233521,-500.0,0.00047671,120]
[356621989,1742845233555,-1000.0,0.00047671,120]
[356621990,1742845233588,-181.9572243,0.00047671,120]
[356621991,1742845233623,-500.0,0.00047671,120]
[356621992,1742845233658,-500.0,0.00047671,120]
[356621993,1742845233691,-500.0,0.00047671,120]
[356621994,1742845233726,-500.0,0.00047671,120]
[356621995,1742845233760,-246.79995568,0.00047671,120]
[356621996,1742845233793,-500.0,0.00047671,120]
[356621997,1742845233827,-500.0,0.00047671,120]
[356621998,1742845233862,-500.0,0.00047671,120]
[356621999,1742845233895,-617.04895792,0.00047671,120]
[356622000,1742845233929,-178.24094254,0.00047671,120]
[356622001,1742845233964,-500.0,0.00047671,120]
[356622002,1742845233999,-500.0,0.00047671,120]
[356622003,1742845234035,-500.0,0.00047671,120]
[356622004,1742845234071,-500.0,0.00047671,120]
[356622005,1742845234108,-500.0,0.00047671,120]
[356622006,1742845234145,-500.0,0.00047671,120]
[356622007,1742845234180,-500.0,0.00047671,120]
[356622008,1742845234214,-500.0,0.00047671,120]
[356622009,1742845234248,-564.59296941,0.00047671,120]
[356622010,1742845234282,-452.03887922,0.00047671,120]
[356622011,1742845234316,-500.0,0.00047671,120]
[356622012,1742845234353,-306.84875372,0.00047671,120]
[356622013,1742845234384,-500.0,0.00047671,120]
[356622014,1742845234416,-500.0,0.00047671,120]
[356622015,1742845234451,-500.0,0.00047671,120]
[356622016,1742845234483,-500.0,0.00047671,120]
[356622017,1742845234515,-500.0,0.00047671,120]
[356622018,1742845234547,-356.81288437,0.00047671,120]
[356622019,1742845234583,-500.0,0.00047671,120]
[356622020,1742845234819,-500.0,0.00047671,120]
[356622021,1742845234857,-500.0,0.00047671,120]
[356622022,1742845234888,-265.65383108,0.00047671,120]
[356622023,1742845234920,-500.0,0.00047671,120]
[356622024,1742845234952,-642.55465522,0.00047671,120]
[356622025,1742845234983,-633.20698166,0.00047671,120]
[356622026,1742845235014,-500.0,0.00047671,120]
[356622027,1742845235045,-500.0,0.00047671,120]
[356622028,1742845235077,-500.0,0.00047671,120]
[356622029,1742845235109,-500.0,0.00047671,120]
[356622030,1742845235141,-504.44553136,0.00047671,120]
[356622031,1742845235171,-642.13503479,0.00047671,120]
[356622032,1742845235200,-500.0,0.00047671,120]
[356622033,1742845235229,-500.0,0.00047671,120]
[356622034,1742845235259,-561.06188397,0.00047671,120]
[356622035,1742845235288,-500.0,0.00047671,120]
[356622036,1742845235317,-500.0,0.00047671,120]
[356622037,1742845235349,-523.34655565,0.00047671,120]
[356622038,1742845235379,-622.38763666,0.00047671,120]
[356622039,1742845235410,-500.0,0.00047671,120]
[356622040,1742845235442,-500.0,0.00047671,120]
[356622041,1742845235472,-500.0,0.00047671,120]
[356622042,1742845235502,-155.9,0.00047671,120]
[356622043,1742845235532,-500.0,0.00047671,120]
[356622044,1742845235563,-500.0,0.00047671,120]
[356622045,1742845235593,-468.03176014,0.00047671,120]
[356622046,1742845235623,-269.64037118,0.00047671,120]
[356622047,1742845235653,-500.0,0.00047671,120]
[356622048,1742845235683,-639.85006704,0.00047671,120]
[356622049,1742845235713,-500.0,0.00047671,120]
[356622050,1742845235744,-505.98962902,0.00047671,120]
[356622051,1742845235774,-500.0,0.00047671,120]
[356622052,1742845235806,-500.0,0.00047671,120]
[356622053,1742845235837,-479.44513257,0.00047671,120]
[356622054,1742845235868,-500.0,0.00047671,120]
[356622055,1742845235899,-500.0,0.00047671,120]
[356622056,1742845235930,-500.0,0.00047671,120]
[356622057,1742845235962,-500.0,0.00047671,120]
[356622058,1742845235994,-772.53,0.00047671,120]
[356622059,1742845236025,-500.0,0.00047671,120]
[356622060,1742845236058,-500.0,0.00047671,120]
[356622061,1742845236089,-319.3509023,0.00047671,120]
[356622062,1742845236120,-500.0,0.00047671,120]
[356622063,1742845236152,-321.69414306,0.00047671,120]
[356622064,1742845236183,-500.0,0.00047671,120]
[356622065,1742845236213,-611.02082361,0.00047671,120]
[356622066,1742845236244,-500.0,0.00047671,120]
[356622067,1742845236274,-500.0,0.00047671,120]
[356622068,1742845236305,-500.0,0.00047671,120]
[356622069,1742845236336,-500.0,0.00047671,120]
[356622070,1742845236370,-544.72,0.00047671,120]
[356622071,1742845236400,-500.0,0.00047671,120]
[356622072,1742845236431,-500.0,0.00047671,120]
[356622073,1742845236460,-530.3742417,0.00047671,120]
[356622074,1742845236489,-500.0,0.00047671,120]
[356622075,1742845236518,-500.0,0.00047671,120]
[356622076,1742845236548,-625.83228946,0.00047671,120]
[356622077,1742845236577,-335.84718154,0.00047671,120]
[356622078,1742845236608,-8544.66,0.00047671,120]
[356622079,1742845236638,-500.0,0.00047671,120]
[356622080,1742845236667,-500.0,0.00047671,120]
[356622081,1742845236698,-500.0,0.00047671,120]
[356622082,1742845236728,-500.0,0.00047671,120]
[356622083,1742845236758,-401.11608845,0.00047671,120]
[356622084,1742845236789,-500.0,0.00047671,120]
[356622085,1742845236820,-500.0,0.00047671,120]
[356622086,1742845236851,-500.0,0.00047671,120]
[356622087,1742845236882,-500.0,0.00047671,120]
[356622088,1742845236914,-500.0,0.00047671,120]
[356622089,1742845236946,-410.15645541,0.00047671,120]
[356622090,1742845236977,-500.0,0.00047671,120]
[356622091,1742845237009,-500.0,0.00047671,120]
[356622092,1742845237039,-554.91938865,0.00047671,120]
[356622093,1742845237071,-500.0,0.00047671,120]
[356622094,1742845237102,-543.71,0.00047671,120]
[356622095,1742845237134,-545.06903657,0.00047671,120]
[356622096,1742845237164,-500.0,0.00047671,120]
[356622097,1742845237195,-500.0,0.00047671,30]
[356622098,1742845237226,-500.0,0.00047671,120]
[356622099,1742845237256,-254.19859092,0.00047671,120]
[356622100,1742845237285,-500.0,0.00047671,120]
[356622101,1742845237316,-500.0,0.00047671,120]
[356622102,1742845237350,-500.0,0.00047671,120]
[356622103,1742845237379,-500.0,0.00047671,120]
[356622104,1742845237410,-500.0,0.00047671,120]
[356622105,1742845237440,-707.43,0.00047671,120]
[356622106,1742845237470,-755.05,0.00047671,120]
[356622107,1742845237500,-500.0,0.00047671,120]
[356622108,1742845237531,-500.0,0.00047671,120]
[356622109,1742845237561,-500.0,0.00047671,120]
[356622110,1742845237590,-500.0,0.00047671,120]
[356622111,1742845237623,-500.0,0.00047671,120]
[356622112,1742845237655,-500.0,0.00047671,120]
[356622113,1742845237684,-500.0,0.00047671,120]
[356622114,1742845237716,-500.0,0.00047671,120]
[356622115,1742845237748,-649.11780936,0.00047671,120]
[356622116,1742845237936,-315.63213879,0.00047671,120]
[356622117,1742845237969,-500.0,0.00047671,120]
[356622118,1742845238004,-500.0,0.00047671,120]
[356622119,1742845238036,-500.0,0.00047671,120]
[356622120,1742845238068,-500.0,0.00047671,120]
[356622121,1742845238098,-500.0,0.00047671,120]
[356622122,1742845238130,-447.36934374,0.00047671,120]
[356622123,1742845238161,-296.33667244,0.00047671,120]
[356622124,1742845238192,-612.84542103,0.00047671,120]
[356622125,1742845238224,-500.0,0.00047671,120]
[356622126,1742845238256,-500.0,0.00047671,120]
[356622127,1742845238286,-500.0,0.00047671,120]
[356622128,1742845238317,-500.0,0.00047671,120]
[356622129,1742845238350,-160.9802267,0.00047671,120]
[356622130,1742845238381,-500.0,0.00047671,120]
[356622131,1742845238414,-500.0,0.00047671,120]
[356622132,1742845238444,-287.53350174,0.00047671,120]
[356622133,1742845238474,-500.0,0.00047671,120]
[356622134,1742845238503,-400.5008104,0.00047671,120]
[356622135,1742845238535,-500.0,0.00047671,120]
[356622136,1742845238566,-238.79552624,0.00047671,120]
[356622137,1742845238596,-500.0,0.00047671,120]
[356622138,1742845238627,-500.0,0.00047671,120]
[356622139,1742845238657,-500.0,0.00047671,120]
[356622140,1742845238688,-500.0,0.00047671,120]
[356622141,1742845238720,-500.0,0.00047671,120]
[356622142,1742845238751,-231.95901096,0.00047671,120]
[356622143,1742845238781,-1358.0,0.00047926,30]
[356622144,1742845238810,-500.0,0.00047945,120]
[356622145,1742845238841,-446.02486158,0.00047945,120]
[356622146,1742845238873,-500.0,0.00047945,120]
[356622147,1742845238905,-500.0,0.00047945,120]
[356622148,1742845238940,-500.0,0.00047945,120]
[356622149,1742845238973,-500.0,0.00047945,120]
[356622150,1742845239005,-500.0,0.00047945,120]
[356622151,1742845239038,-444.99023513,0.00047945,120]
[356622152,1742845239070,-500.0,0.00047945,120]
[356622153,1742845239101,-500.0,0.00047945,120]
[356622154,1742845239132,-500.0,0.00047945,120]
[356622155,1742845239164,-500.0,0.00047945,120]
[356622156,1742845239195,-500.0,0.00047945,120]
[356622157,1742845239226,-500.0,0.00047945,120]
[356622158,1742845239256,-500.0,0.00047945,120]
[356622159,1742845239288,-204.9772153,0.00047945,120]
[356622160,1742845239319,-500.0,0.00047945,120]
[356622161,1742845239355,-500.0,0.00047945,120]
[356622162,1742845239387,-500.0,0.00047945,120]
[356622163,1742845239419,-500.0,0.00047945,120]
[356622164,1742845239450,-500.0,0.00047945,120]
[356622165,1742845239481,-500.0,0.00047945,120]
[356622166,1742845239512,-500.0,0.00047945,120]
[356622167,1742845239542,-500.0,0.00047945,120]
[356622168,1742845239572,-500.0,0.00047945,120]
[356622169,1742845239602,-500.0,0.00047945,120]
[356622170,1742845239633,-500.0,0.00047945,120]
[356622171,1742845239663,-500.0,0.00047945,120]
[356622172,1742845239694,-500.0,0.00047945,120]
[356622173,1742845239724,-500.0,0.00047945,120]
[356622174,1742845239755,-500.0,0.00047945,120]
[356622175,1742845239787,-500.0,0.00047945,120]
[356622176,1742845239819,-500.0,0.00047945,120]
[356622177,1742845239851,-500.0,0.00047945,120]
[356622178,1742845239882,-500.0,0.00047945,120]
[356622179,1742845239913,-500.0,0.00047945,120]
[356622180,1742845239944,-500.0,0.00047945,120]
[356622181,1742845239975,-500.0,0.00047945,120]
[356622182,1742845240007,-500.0,0.00047945,120]
[356622183,1742845240039,-500.0,0.00047945,120]
[356622184,1742845240071,-500.0,0.00047945,120]
[356622185,1742845240101,-500.0,0.00047945,120]
[356622186,1742845240133,-500.0,0.00047945,120]
[356622187,1742845240163,-500.0,0.00047945,120]
[356622188,1742845240192,-500.0,0.00047945,120]
[356622189,1742845240252,-500.0,0.00047945,120]
[356622190,1742845240281,-500.0,0.00047945,120]
[356622191,1742845240310,-500.0,0.00047945,120]
[356622192,1742845240339,-500.0,0.00047945,120]
[356622193,1742845240372,-500.0,0.00047945,120]
[356622194,1742845240402,-500.0,0.00047945,120]
[356622195,1742845240432,-500.0,0.00047945,120]
[356622196,1742845240463,-500.0,0.00047945,120]
[356622197,1742845240493,-500.0,0.00047945,120]
[356622198,1742845240523,-500.0,0.00047945,120]
[356622199,1742845240553,-500.0,0.00047945,120]
[356622200,1742845240583,-500.0,0.00047945,120]
[356622201,1742845240612,-500.0,0.00047945,120]
[356622202,1742845240641,-443.56,0.00047945,120]
[356622203,1742845240672,-500.0,0.00047945,120]
[356622204,1742845240702,-500.0,0.00047945,120]
[356622205,1742845240732,-500.0,0.00047945,120]
[356622206,1742845240762,-500.0,0.00047945,120]
[356622207,1742845240794,-500.0,0.00047945,120]
[356622208,1742845240826,-500.0,0.00047945,120]
[356622209,1742845240856,-500.0,0.00047945,120]
[356622210,1742845240886,-350.0,0.00047945,120]
[356622211,1742845240917,-500.0,0.00047945,120]
[356622212,1742845240947,-500.0,0.00047945,120]
[356622213,1742845240978,-500.0,0.00047945,120]
[356622214,1742845241010,-500.0,0.00047945,120]
[356622215,1742845241042,-500.0,0.00047945,120]
[356622216,1742845241078,-500.0,0.00047945,120]
[356622217,1742845241111,-500.0,0.00047945,120]
[356622218,1742845241142,-500.0,0.00047945,120]
[356622219,1742845241173,-500.0,0.00047945,120]
[356622220,1742845241204,-150.0,0.00047945,120]
[356622221,1742845241236,-500.0,0.00047945,120]
[356622222,1742845241268,-500.0,0.00047945,120]
[356622223,1742845241300,-500.0,0.00047945,120]
[356622224,1742845241332,-500.0,0.00047945,120]
[356622225,1742845241364,-500.0,0.00047945,120]
[356622226,1742845241394,-500.0,0.00047945,120]
[356622227,1742845241428,-500.0,0.00047945,120]
[356622228,1742845241458,-500.0,0.00047945,120]
[356622229,1742845241487,-1231.79,0.00047945,120]
[356622230,1742845241519,-500.0,0.00047945,120]
[356622231,1742845241548,-400.0,0.00047945,120]
[356622232,1742845241578,-500.0,0.00047945,120]
[356622233,1742845241608,-500.0,0.00047945,120]
[356622234,1742845241639,-500.0,0.00047945,120]
[356622235,1742845241674,-600.0,0.00047945,120]
[356622236,1742845241704,-272.56099164,0.00047945,120]
[356622237,1742845241734,-500.0,0.00047945,120]
[356622238,1742845241764,-439.67042608,0.00047945,120]
[356622239,1742845241793,-484.74096678,0.00047945,120]
[356622240,1742845241824,-298.04441177,0.00047945,120]
[356622241,1742845241854,-514.76532783,0.00047945,120]
[356622242,1742845241884,-500.0,0.00047945,120]
[356622243,1742845241913,-500.0,0.00047945,120]
[356622244,1742845241943,-500.0,0.00047945,120]
[356622245,1742845241975,-500.0,0.00047945,120]
[356622246,1742845242008,-500.0,0.00047945,120]
[356622247,1742845242040,-500.0,0.00047945,120]
[356622248,1742845242076,-508.49855668,0.00047945,120]
[356622249,1742845242106,-500.0,0.00047945,120]
[356622250,1742845242136,-500.0,0.00047945,120]
[356622251,1742845242166,-500.0,0.00047945,120]
[356622252,1742845242196,-500.0,0.00047945,120]
[356622253,1742845242226,-500.0,0.00047945,120]
[356622254,1742845242260,-1233.45,0.00047945,120]
[356622255,1742845242290,-500.0,0.00047945,120]
[356622256,1742845242320,-500.0,0.00047945,120]
[356622257,1742845242353,-500.0,0.00047945,120]
[356622258,1742845242381,-500.0,0.00047945,120]
[356622259,1742845242413,-500.0,0.00047945,120]
[356622260,1742845242448,-500.0,0.00047945,120]
[356622261,1742845242480,-1269.12,0.00047945,120]
[356622262,1742845242511,-500.0,0.00047945,120]
[356622263,1742845242543,-500.0,0.00047945,120]
[356622264,1742845242575,-266.19661644,0.00047945,120]
[356622265,1742845242604,-250.16361438,0.00047945,120]
[356622266,1742845242633,-253.72889522,0.00047945,120]
[356622267,1742845242663,-500.0,0.00047945,120]
[356622268,1742845242692,-500.0,0.00047945,120]
[356622269,1742845242722,-500.0,0.00047945,120]
[356622270,1742845242753,-206.31164214,0.00047945,120]
[356622271,1742845242782,-500.0,0.00047945,120]
[356622272,1742845242814,-183.40770211,0.00047945,120]
[356622273,1742845242844,-500.0,0.00047945,120]
[356622274,1742845242872,-1000.0,0.00047945,120]
[356622275,1742845242901,-632.5469968,0.00047945,120]
[356622276,1742845242931,-154.19075174,0.00047945,120]
[356622277,1742845242960,-254.25713847,0.00047945,120]
[356622278,1742845242990,-415.56934967,0.00047945,120]
[356622279,1742845243021,-500.0,0.00047945,120]
[356622280,1742845243052,-529.22668685,0.00047945,120]
[356622281,1742845243083,-500.0,0.00047945,120]
[356622282,1742845243114,-259.93478608,0.00047945,120]
[356622283,1742845243145,-500.0,0.00047945,120]
[356622284,1742845243175,-166.17274911,0.00047945,120]
[356622285,1742845243204,-500.0,0.00047945,120]
[356622286,1742845243233,-434.45446854,0.00047945,120]
[356622287,1742845243262,-572.00800708,0.00047945,120]
[356622288,1742845243291,-537.57012568,0.00047945,120]
[356622289,1742845243323,-357.10778425,0.00047945,120]
[356622290,1742845243355,-500.0,0.00047945,120]
[356622291,1742845243383,-500.0,0.00047945,120]
[356622292,1742845243415,-193.81512636,0.00047945,120]
[356622293,1742845243449,-500.0,0.00047945,120]
[356622294,1742845243479,-557.73840451,0.00047945,120]
[356622295,1742845243509,-500.0,0.00047945,120]
[356622296,1742845243539,-500.0,0.00047945,120]
[356622297,1742845243569,-500.0,0.00047945,120]
[356622298,1742845243599,-500.0,0.00047945,120]
[356622299,1742845243629,-500.0,0.00047945,120]
[356622300,1742845243659,-500.0,0.00047945,120]
[356622301,1742845243691,-279.06815233,0.00047945,120]
[356622302,1742845243722,-500.0,0.00047945,120]
[356622303,1742845243754,-500.0,0.00047945,120]
[356622304,1742845243784,-268.67859683,0.00047945,120]
[356622305,1742845243816,-500.0,0.00047945,120]
[356622306,1742845243847,-500.0,0.00047945,120]
[356622307,1742845243882,-172.01584965,0.00047945,120]
[356622308,1742845243917,-504.63945061,0.00047945,120]
[356622309,1742845243949,-500.0,0.00047945,120]
[356622310,1742845243979,-500.0,0.00047945,120]
[356622311,1742845244010,-500.0,0.00047945,120]
[356622312,1742845244040,-209.15455474,0.00047945,120]
[356622313,1742845244071,-319.5054185,0.00047945,120]
[356622314,1742845244102,-500.0,0.00047945,120]
[356622315,1742845244132,-500.0,0.00047945,120]
[356622316,1742845244162,-315.65865613,0.00047945,120]
[356622317,1742845244193,-365.54186431,0.00047945,120]
[356622318,1742845244224,-500.0,0.00047945,120]
[356622319,1742845244254,-291.35603019,0.00047945,120]
[356622320,1742845244284,-772.53,0.00047945,120]
[356622321,1742845244314,-500.0,0.00047945,120]
[356622322,1742845244345,-500.0,0.00047945,120]
[356622323,1742845244381,-500.0,0.00047945,120]
[356622324,1742845244413,-500.0,0.00047945,120]
[356622325,1742845244445,-500.0,0.00047945,120]
[356622326,1742845244475,-500.0,0.00047945,120]
[356622327,1742845244507,-414.65993049,0.00047945,120]
[356622328,1742845244537,-500.0,0.00047945,120]
[356622329,1742845244567,-544.72,0.00047945,120]
[356622330,1742845244598,-500.0,0.00047945,120]
[356622331,1742845244629,-500.0,0.00047945,120]
[356622332,1742845244660,-500.0,0.00047945,120]
[356622333,1742845244692,-500.0,0.00047945,120]
[356622334,1742845244722,-8544.66,0.00047945,120]
[356622335,1742845244752,-500.0,0.00047945,120]
[356622336,1742845244782,-291.73981451,0.00047945,120]
[356622337,1742845244813,-500.0,0.00047945,120]
[356622338,1742845244845,-500.0,0.00047945,120]
[356622339,1742845244886,-500.0,0.00047945,120]
[356622340,1742845244924,-500.0,0.00047945,120]
[356622341,1742845244958,-500.0,0.00047945,120]
[356622342,1742845244995,-500.0,0.00047945,120]
[356622343,1742845245029,-500.0,0.00047945,120]
[356622344,1742845245064,-238.22709743,0.00047945,120]
[356622345,1742845245101,-333.83237397,0.00047945,120]
[356622346,1742845245135,-500.0,0.00047945,120]
[356622347,1742845245170,-543.71,0.00047945,120]
[356622348,1742845245203,-500.0,0.00047945,120]
[356622349,1742845245237,-500.0,0.00047945,30]
[356622350,1742845245273,-500.0,0.00047945,120]
[356622351,1742845245503,-500.0,0.00047945,120]
[356622352,1742845245535,-500.0,0.00047945,120]
[356622353,1742845245565,-500.0,0.00047945,120]
[356622354,1742845245594,-500.0,0.00047945,120]
[356622355,1742845245623,-500.0,0.00047945,120]
[356622356,1742845245654,-707.43,0.00047945,120]
[356622357,1742845245684,-755.05,0.00047945,120]
[356622358,1742845245714,-500.0,0.00047945,120]
[356622359,1742845245744,-558.04780339,0.00047945,120]
[356622360,1742845245775,-500.0,0.00047945,120]
[356622361,1742845245808,-256.62303111,0.00047945,120]
[356622362,1742845245840,-500.0,0.00047945,120]
[356622363,1742845245871,-500.0,0.00047945,120]
[356622364,1742845245906,-500.0,0.00047945,120]
[356622365,1742845245938,-500.0,0.00047945,120]
[356622366,1742845245969,-500.0,0.00047945,120]
[356622367,1742845246001,-500.0,0.00047945,120]
[356622368,1742845246032,-500.0,0.00047945,120]
[356622369,1742845246065,-206.46585137,0.00047945,120]
[356622370,1742845246097,-500.0,0.00047945,120]
[356622371,1742845246130,-500.0,0.00047945,120]
[356622372,1742845246162,-580.01992335,0.00047945,120]
[356622373,1742845246193,-183.72951697,0.00047945,120]
[356622374,1742845246230,-500.0,0.00047945,120]
[356622375,1742845246262,-421.65275255,0.00047945,120]
[356622376,1742845246293,-500.0,0.00047945,120]
[356622377,1742845246324,-500.0,0.00047945,120]
[356622378,1742845246357,-500.0,0.00047945,120]
[356622379,1742845246389,-500.0,0.00047945,120]
[356622380,1742845246424,-500.0,0.00047945,120]
[356622381,1742845246456,-500.0,0.00047945,120]
[356622382,1742845246488,-500.0,0.00047945,120]
[356622383,1742845246521,-500.0,0.00047945,120]
[356622384,1742845246553,-50000.0,0.00048,48]
[356622385,1742845246584,-200.0,0.00048,120]
[356622386,1742845246613,-9054.69506703,0.00048,120]
[356622387,1742845246645,-1000000.0,0.00048,120]
[356622388,1742845246676,-172.0,0.00048,120]
[356622389,1742845246706,-200.0,0.00048,30]
[356622390,1742845246736,-1010.95,0.00048,120]
[356622391,1742845246767,-896463.306,0.00048,120]
[356622392,1742845246800,-98502.39697198,0.00048,120]
[356622393,1742845246830,-500.0,0.00048219,120]
[356622394,1742845246860,-1231.79,0.00048219,120]
[356622395,1742845246891,-500.0,0.00048219,120]
[356622396,1742845246920,-500.0,0.00048219,120]
[356622397,1742845246966,-500.0,0.00048219,120]
[356622398,1742845247000,-500.0,0.00048219,120]
[356622399,1742845247032,-500.0,0.00048219,120]
[356622400,1742845247063,-500.0,0.00048219,120]
[356622401,1742845247096,-500.0,0.00048219,120]
[356622402,1742845247127,-500.0,0.00048219,120]
[356622403,1742845247158,-500.0,0.00048219,120]
[356622404,1742845247189,-500.0,0.00048219,120]
[356622405,1742845247220,-500.0,0.00048219,120]
[356622406,1742845247251,-500.0,0.00048219,120]
[356622407,1742845247282,-1233.45,0.00048219,120]
[356622408,1742845247312,-500.0,0.00048219,120]
[356622409,1742845247344,-500.0,0.00048219,120]
[356622410,1742845247381,-524.34,0.00048219,120]
[356622411,1742845247414,-525.22695715,0.00048219,120]
[356622412,1742845247446,-500.0,0.00048219,120]
[356622413,1742845247480,-500.0,0.00048219,120]
[356622414,1742845247513,-1269.12,0.00048219,120]
[356622415,1742845247545,-500.0,0.00048219,120]
[356622416,1742845247577,-280.0821635,0.00048219,120]
[356622417,1742845247609,-649.68577846,0.00048219,120]
[356622418,1742845247640,-500.0,0.00048219,120]
[356622419,1742845247671,-226.00098098,0.00048219,120]
[356622420,1742845247703,-500.0,0.00048219,120]
[356622421,1742845247734,-500.0,0.00048219,120]
[356622422,1742845247767,-1036.44097803,0.00048219,120]
[356622423,1742845247801,-397.17486363,0.00048219,120]
[356622424,1742845247833,-500.0,0.00048219,120]
[356622425,1742845247865,-500.0,0.00048219,120]
[356622426,1742845247898,-500.0,0.00048219,120]
[356622427,1742845247932,-500.0,0.00048219,120]
[356622428,1742845247965,-209.47633928,0.00048219,120]
[356622429,1742845247999,-513.32915121,0.00048219,120]
[356622430,1742845248033,-500.0,0.00048219,120]
[356622431,1742845248076,-500.0,0.00048219,120]
[356622432,1742845248122,-500.0,0.00048219,120]
[356622433,1742845248161,-500.0,0.00048219,120]
[356622434,1742845248200,-500.0,0.00048219,120]
[356622435,1742845248240,-500.0,0.00048219,120]
[356622436,1742845248279,-500.0,0.00048219,120]
[356622437,1742845248317,-500.0,0.00048219,120]
[356622438,1742845248357,-575.40740911,0.00048219,120]
[356622439,1742845248395,-622.34529895,0.00048219,120]
[356622440,1742845248429,-500.0,0.00048219,120]
[356622441,1742845248467,-271.10119545,0.00048219,120]
[356622442,1742845248504,-500.0,0.00048219,120]
[356622443,1742845248542,-500.0,0.00048219,120]
[356622444,1742845248578,-220.53345678,0.00048219,120]
[356622445,1742845248613,-500.0,0.00048219,120]
[356622446,1742845248648,-772.53,0.00048219,120]
[356622447,1742845248684,-500.0,0.00048219,120]
[356622448,1742845248719,-500.0,0.00048219,120]
[356622449,1742845248756,-500.0,0.00048219,120]
[356622450,1742845248793,-500.0,0.00048219,120]
[356622451,1742845248831,-500.0,0.00048219,120]
[356622452,1742845248869,-447.29538727,0.00048219,120]
[356622453,1742845248907,-186.30833513,0.00048219,120]
[356622454,1742845248943,-544.72,0.00048219,120]
[356622455,1742845248983,-322.94027315,0.00048219,120]
[356622456,1742845249021,-500.0,0.00048219,120]
[356622457,1742845249058,-500.0,0.00048219,120]
[356622458,1742845249093,-500.0,0.00048219,120]
[356622459,1742845249128,-8544.66,0.00048219,120]
[356622460,1742845249164,-292.71907611,0.00048219,120]
[356622461,1742845249203,-500.0,0.00048219,120]
[356622462,1742845249238,-500.0,0.00048219,120]
[356622463,1742845249270,-500.0,0.00048219,120]
[356622464,1742845249307,-574.90668412,0.00048219,120]
[356622465,1742845249343,-506.07714763,0.00048219,120]
[356622466,1742845249383,-500.0,0.00048219,120]
[356622467,1742845249419,-500.0,0.00048219,120]
[356622468,1742845249456,-500.0,0.00048219,120]
[356622469,1742845249490,-543.71,0.00048219,120]